{"text_format":"1","workbook":"xlsx","n_sheets":2,"sheets":["Feuil1","Feuil2"],"not_rendered":{"charts":0,"images":3,"macros":1,"external_links":0,"defined_names":0,"comments":0,"pivot_tables":0},"unopened":[],"bounds":{"document_bytes":16777216,"sheet_cells":100000,"rows_first":2000,"rows_last":500,"rows_between":2000,"halvings":0,"cell_chars":16384,"cell_head_chars":4096},"cells_cut":0,"cells_raw":0,"read":"whole","date_system":"1900"}

{"sheet":"Feuil1","index":0,"n_rows":88,"n_cols":9,"rows_kept":88,"cut":false,"hidden":false,"merged":[]}
[]
[null,null,"         FEUILLE DE TEMPS - CONTREMAÎTRE"]
[]
[]
[null,null,"                   SEMAINE FINISSANT LE:"]
[]
[null,null,"Projet","Jour","Hrs début","Hr début\ndîner","Hr fin\ndîner","Hrs fin","TOTAL"]
[]
[]
[null,null,null,null,null,null,null,null,{"$f":"IF(ISBLANK(E10),\"\",(F10-E10)+(H10-G10))","v":""}]
[null,null,null,null,null,null,null,null,{"$f":"IF(ISBLANK(E11),\"\",(F11-E11)+(H11-G11))","v":""}]
[null,null,null,null,null,null,null,null,""]
[null,null,null,null,null,null,null,null,""]
[null,null,null,null,null,null,null,null,""]
[null,null,null,null,null,null,null,null,""]
[null,null,null,null,null,null,null,null,""]
[null,null,null,null,null,null,null,null,""]
[null,null,null,null,null,null,null,null,""]
[null,null,null,null,null,null,null,null,""]
[null,null,null,null,null,null,null,null,{"$f":"IF(ISBLANK(I10),\" \",SUM(I10:I19))","v":0}]
[]
[]
[null,null,null,null,null,null,null,null,{"$f":"IF(ISBLANK(E23),\"\",(F23-E23)+(H23-G23))","v":""}]
[null,null,null,null,null,null,null,null,{"$f":"IF(ISBLANK(E24),\"\",(F24-E24)+(H24-G24))","v":""}]
[null,null,null,null,null,null,null,null,""]
[null,null,null,null,null,null,null,null,""]
[null,null,null,null,null,null,null,null,""]
[null,null,null,null,null,null,null,null,""]
[null,null,null,null,null,null,null,null,""]
[null,null,null,null,null,null,null,null,""]
[null,null,null,null,null,null,null,null,""]
[null,null,null,null,null,null,null,null,""]
[null,null,null,null,null,null,null,null,{"$f":"SUM(I23:I32)","v":0}]
[]
[]
[null,null,null,null,null,null,null,null,{"$f":"IF(ISBLANK(E36),\"\",(F36-E36)+(H36-G36))","v":""}]
[null,null,null,null,null,null,null,null,{"$f":"IF(ISBLANK(E37),\"\",(F37-E37)+(H37-G37))","v":""}]
[null,null,null,null,null,null,null,null,""]
[null,null,null,null,null,null,null,null,""]
[null,null,null,null,null,null,null,null,""]
[null,null,null,null,null,null,null,null,""]
[null,null,null,null,null,null,null,null,""]
[null,null,null,null,null,null,null,null,""]
[null,null,null,null,null,null,null,null,""]
[null,null,null,null,null,null,null,null,""]
[null,null,null,null,null,null,null,null,{"$f":"SUM(I36:I45)","v":0}]
[]
[]
[null,null,null,null,null,null,null,null,{"$f":"IF(ISBLANK(E49),\"\",(F49-E49)+(H49-G49))","v":""}]
[null,null,null,null,null,null,null,null,{"$f":"IF(ISBLANK(E50),\"\",(F50-E50)+(H50-G50))","v":""}]
[null,null,null,null,null,null,null,null,""]
[null,null,null,null,null,null,null,null,""]
[null,null,null,null,null,null,null,null,""]
[null,null,null,null,null,null,null,null,""]
[null,null,null,null,null,null,null,null,""]
[null,null,null,null,null,null,null,null,""]
[null,null,null,null,null,null,null,null,""]
[null,null,null,null,null,null,null,null,""]
[null,null,null,null,null,null,null,null,{"$f":"SUM(I49:I58)","v":0}]
[]
[]
[null,null,null,null,null,null,null,null,{"$f":"IF(ISBLANK(E62),\"\",(F62-E62)+(H62-G62))","v":""}]
[null,null,null,null,null,null,null,null,{"$f":"IF(ISBLANK(E63),\"\",(F63-E63)+(H63-G63))","v":""}]
[null,null,null,null,null,null,null,null,""]
[null,null,null,null,null,null,null,null,""]
[null,null,null,null,null,null,null,null,""]
[null,null,null,null,null,null,null,null,""]
[null,null,null,null,null,null,null,null,""]
[null,null,null,null,null,null,null,null,""]
[null,null,null,null,null,null,null,null,""]
[null,null,null,null,null,null,null,null,""]
[null,null,null,null,null,null,null,null,{"$f":"SUM(I62:I71)","v":0}]
[]
[]
[null,null,null,null,null,null,null,null,{"$f":"IF(ISBLANK(D75),\"\",(F75-E75)+(H75-G75))","v":""}]
[null,null,null,null,null,null,null,null,{"$f":"IF(ISBLANK(D76),\"\",(F76-E76)+(H76-G76))","v":""}]
[null,null,null,null,null,null,null,null,""]
[null,null,null,null,null,null,null,null,""]
[null,null,null,null,null,null,null,null,""]
[null,null,null,null,null,null,null,null,""]
[null,null,null,null,null,null,null,null,""]
[null,null,null,null,null,null,null,null,""]
[null,null,null,null,null,null,null,null,""]
[null,null,null,null,null,null,null,null,""]
[null,null,null,null,null,null,null,null,{"$f":"SUM(I75:I84)","v":0}]
[]
[]
[null,null,"COMMENTAIRES"]

{"sheet":"Feuil2","index":1,"n_rows":65,"n_cols":18,"rows_kept":65,"cut":false,"hidden":true,"merged":[]}
[]
[]
["PROJET",null,null,null,null,null,"EMPLOYÉ",null,null,null,null,null,"HEURES","HEURES DINER","HR DINER FIN","HEURES FIN",null,"JOURS"]
[]
["HALTE BELOEIL - Rue de l'Industrie / St-Mathieu-de Beloeil",null,null,null,null,null,"BAILLARGEON, Dany",null,null,null,null,null,"05:00:00","11:30:00","11:30:00","13:00:00",null,"Lundi"]
["MULLIGAN - 1633, rue de l'industrie / Beloeil",null,null,null,null,null,"BEAUPRÉ, Patrick",null,null,null,null,null,"05:05:00","11:35:00","11:35:00","13:05:00",null,"Mardi"]
["CAR. ÉNERGIE-Local 102 - 1463 boul. Lionel-Boulet / Varennes",null,null,null,null,null,"BÉLANGER, Alex",null,null,null,null,null,"05:10:00","11:40:00","11:40:00","13:10:00",null,"Mercredi"]
["MAISON -  735 boul. Marie-Victorin / Verchères",null,null,null,null,null,"BÉLANGER, Benoît",null,null,null,null,null,"05:15:00","11:45:00","11:45:00","13:15:00",null,"Jeudi"]
["CARREFOUR ANJOU - Anjou",null,null,null,null,null,"BLANCHET, Samuel",null,null,null,null,null,"05:20:00","11:50:00","11:50:00","13:20:00",null,"Vendredi"]
["CARREFOUR LAVAL - Laval",null,null,null,null,null,"BOURQUE, Keven",null,null,null,null,null,"05:25:00","11:55:00","11:55:00","13:25:00",null,"Samedi"]
["CHIRO - 880 boul. du Séminaire / St-Jean-sur-Richelieu",null,null,null,null,null,"CARON, Steeve",null,null,null,null,null,"05:30:00","12:00:00","12:00:00","13:30:00",null,"Dimanche"]
["CLIN. STE-JULIE - 286, de Normandie / Ste-Julie",null,null,null,null,null,"CARRIÈRE, Claude",null,null,null,null,null,"05:35:00","12:05:00","12:05:00","13:35:00"]
["LASER RÉVOLUTION - 9520, boul. Leduc / Brossard",null,null,null,null,null,"CLOUTIER, Carl",null,null,null,null,null,"05:40:00","12:10:00","12:10:00","13:40:00"]
["JULES-VERNES / 1471, boul. Lionel-Boulet / Varennes",null,null,null,null,null,"CÔTÉ, Nicolas",null,null,null,null,null,"05:45:00","12:15:00","12:15:00","13:45:00"]
["BENNY D'ANGELO / Rue Roch-L'Écuyer / St-Rémi",null,null,null,null,null,"FOURNIER, Francis",null,null,null,null,null,"05:50:00","12:20:00","12:20:00","13:50:00"]
["DMR / 1354, boul. Lionel-Boulet / Varennes",null,null,null,null,null,"D'Amours, Simon",null,null,null,null,null,"05:55:00","12:25:00","12:25:00","13:55:00"]
["ENGLOBE / boul. Lionel-Boulet / Varennes",null,null,null,null,null,"GAGNÉ, Yannick",null,null,null,null,null,"06:00:00","12:30:00","12:30:00","14:00:00"]
[null,null,null,null,null,null,"GROSSO, Maxime",null,null,null,null,null,"06:05:00","12:35:00","12:35:00","14:05:00"]
[null,null,null,null,null,null,"JOLIN, Robert",null,null,null,null,null,"06:10:00","12:40:00","12:40:00","14:10:00"]
[null,null,null,null,null,null,"MARINEAU, Simon",null,null,null,null,null,"06:15:00","12:45:00","12:45:00","14:15:00"]
[null,null,null,null,null,null,"ROBERGE, Dave",null,null,null,null,null,"06:20:00","12:50:00","12:50:00","14:20:00"]
[null,null,null,null,null,null,"SÉGUIN, René",null,null,null,null,null,"06:25:00","12:55:00","12:55:00","14:25:00"]
[null,null,null,null,null,null,null,null,null,null,null,null,"06:30:00","13:00:00","13:00:00","14:30:00"]
[null,null,null,null,null,null,null,null,null,null,null,null,"06:35:00","13:05:00","13:05:00","14:35:00"]
[null,null,null,null,null,null,null,null,null,null,null,null,"06:40:00","13:10:00","13:10:00","14:40:00"]
[null,null,null,null,null,null,null,null,null,null,null,null,"06:45:00","13:15:00","13:15:00","14:45:00"]
[null,null,null,null,null,null,null,null,null,null,null,null,"06:50:00","13:20:00","13:20:00","14:50:00"]
[null,null,null,null,null,null,null,null,null,null,null,null,"06:55:00","13:25:00","13:25:00","14:55:00"]
[null,null,null,null,null,null,null,null,null,null,null,null,"07:00:00","13:30:00","13:30:00","15:00:00"]
[null,null,null,null,null,null,null,null,null,null,null,null,"07:05:00","13:35:00","13:35:00","15:05:00"]
[null,null,null,null,null,null,null,null,null,null,null,null,"07:10:00","13:40:00","13:40:00","15:10:00"]
[null,null,null,null,null,null,null,null,null,null,null,null,"07:15:00","13:45:00","13:45:00","15:15:00"]
[null,null,null,null,null,null,null,null,null,null,null,null,"07:20:00","13:50:00","13:50:00","15:20:00"]
[null,null,null,null,null,null,null,null,null,null,null,null,"07:25:00","13:55:00","13:55:00","15:25:00"]
[null,null,null,null,null,null,null,null,null,null,null,null,"07:30:00","14:00:00","14:00:00","15:30:00"]
[null,null,null,null,null,null,null,null,null,null,null,null,"07:35:00",null,null,"15:35:00"]
[null,null,null,null,null,null,null,null,null,null,null,null,"07:40:00",null,null,"15:40:00"]
[null,null,null,null,null,null,null,null,null,null,null,null,"07:45:00",null,null,"15:45:00"]
[null,null,null,null,null,null,null,null,null,null,null,null,"07:50:00",null,null,"15:50:00"]
[null,null,null,null,null,null,null,null,null,null,null,null,"07:55:00",null,null,"15:55:00"]
[null,null,null,null,null,null,null,null,null,null,null,null,"08:00:00",null,null,"16:00:00"]
[null,null,null,null,null,null,null,null,null,null,null,null,"08:05:00",null,null,"16:05:00"]
[null,null,null,null,null,null,null,null,null,null,null,null,"08:10:00",null,null,"16:10:00"]
[null,null,null,null,null,null,null,null,null,null,null,null,"08:15:00",null,null,"16:15:00"]
[null,null,null,null,null,null,null,null,null,null,null,null,"08:20:00",null,null,"16:20:00"]
[null,null,null,null,null,null,null,null,null,null,null,null,"08:25:00",null,null,"16:25:00"]
[null,null,null,null,null,null,null,null,null,null,null,null,"08:30:00",null,null,"16:30:00"]
[null,null,null,null,null,null,null,null,null,null,null,null,"08:35:00",null,null,"16:35:00"]
[null,null,null,null,null,null,null,null,null,null,null,null,"08:40:00",null,null,"16:40:00"]
[null,null,null,null,null,null,null,null,null,null,null,null,"08:45:00",null,null,"16:45:00"]
[null,null,null,null,null,null,null,null,null,null,null,null,"08:50:00",null,null,"16:50:00"]
[null,null,null,null,null,null,null,null,null,null,null,null,"08:55:00",null,null,"16:55:00"]
[null,null,null,null,null,null,null,null,null,null,null,null,"09:00:00",null,null,"17:00:00"]
[null,null,null,null,null,null,null,null,null,null,null,null,"08:05:00"]
[null,null,null,null,null,null,null,null,null,null,null,null,"08:10:00"]
[null,null,null,null,null,null,null,null,null,null,null,null,"08:15:00"]
[null,null,null,null,null,null,null,null,null,null,null,null,"08:20:00"]
[null,null,null,null,null,null,null,null,null,null,null,null,"08:25:00"]
[null,null,null,null,null,null,null,null,null,null,null,null,"08:30:00"]
[null,null,null,null,null,null,null,null,null,null,null,null,"08:35:00"]
[null,null,null,null,null,null,null,null,null,null,null,null,"08:40:00"]
[null,null,null,null,null,null,null,null,null,null,null,null,"08:45:00"]
[null,null,null,null,null,null,null,null,null,null,null,null,"08:50:00"]
[null,null,null,null,null,null,null,null,null,null,null,null,"08:55:00"]
[null,null,null,null,null,null,null,null,null,null,null,null,"09:00:00"]